bitfinex/quotes_SOLUSD_20250518
["timestamp","ask_amount","ask_price","bid_price","bid_amount"]
[1747566369055,271.52749359,171.55,171.45,26.0]
[1747566369264,266.0,171.55,171.47,1.5367]
[1747566372663,18.64964886,171.54,171.47,1.5367]
[1747566372875,18.64964886,171.54,171.46,18.1]
[1747566377464,44.64964886,171.52,171.41,18.1]
[1747566397396,44.64964886,171.52,171.42,8.1361]
[1747566399288,18.64964886,171.52,171.42,8.1361]
[1747566399787,26.0,171.53,171.42,8.1361]
[1747566400569,18.64964886,171.54,171.43,26.0]
[1747566401999,18.64964886,171.54,171.45,26.0]
[1747566403072,18.64964886,171.54,171.46,18.08]
[1747566422209,18.64964886,171.54,171.45,26.0]
[1747566422408,18.64964886,171.54,171.44,18.08]
[1747566444857,26.0,171.51,171.44,18.08]
[1747566445070,18.64964886,171.5,171.42,1.5614]
[1747566445955,18.64964886,171.5,171.4,8.40524589]
[1747566446858,18.64964886,171.5,171.39,26.0]
[1747566447156,36.72964886,171.5,171.38,26.1669]
[1747566453555,18.64964886,171.48,171.38,26.1669]
[1747566453858,44.64964886,171.48,171.38,26.1669]
[1747566460569,44.64964886,171.48,171.38,19.5961]
[1747566460865,18.64964886,171.44,171.38,19.5961]
[1747566467569,18.64964886,171.44,171.38,18.06]
[1747566467975,18.64964886,171.44,171.34,8.2257]
[1747566468151,36.72964886,171.44,171.34,8.2257]
[1747566468877,41.40774769,171.44,171.34,8.2257]
[1747566469078,36.72964886,171.44,171.34,8.2257]
[1747566469961,18.64964886,171.44,171.34,8.2257]
[1747566484777,18.64964886,171.41,171.31,36.16]
[1747566484960,18.64964886,171.41,171.31,62.16]
[1747566485154,18.08,171.44,171.32,1.5747]
[1747566485155,18.64964886,171.43,171.32,1.5747]
[1747566489482,18.64964886,171.43,171.33,18.08]
[1747566507309,83.55881762,171.46,171.35,6.4442]
[1747566507521,109.55881762,171.46,171.36,1.6369]
[1747566508287,83.55881762,171.46,171.36,1.6369]
[1747566508487,83.55881762,171.46,171.37,18.08]
[1747566508824,9.1836205,171.49,171.38,6.0771]
[1747566508981,22.84804277,171.5,171.39,19.6803]
[1747566509313,4.19839391,171.5,171.39,19.6803]
[1747566510719,35.1836205,171.51,171.39,19.6803]
[1747566511306,26.0,171.51,171.39,19.6803]
[1747566518443,18.64964886,171.51,171.42,26.0]
[1747566551321,18.64964886,171.51,171.41,18.06]
[1747566551735,83.55881762,171.52,171.42,8.2085]
[1747566556118,83.55881762,171.52,171.43,18.06]
[1747566557235,91.90796275,171.53,171.43,44.06]
[1747566565442,91.90796275,171.53,171.44,18.06]
[1747566573849,18.64964886,171.52,171.44,18.06]
[1747566584454,20.26074886,171.52,171.44,18.06]
[1747566584641,20.26074886,171.52,171.42,1.6345]
[1747566585242,20.26074886,171.52,171.4,18.06]
[1747566588630,26.0,171.49,171.4,18.06]
[1747566588832,18.64964886,171.48,171.4,18.06]
[1747566597070,26.0,171.49,171.4,18.06]
[1747566597271,18.64964886,171.5,171.4,18.06]
[1747566597557,62.12,171.51,171.4,18.06]
[1747566597860,18.64964886,171.5,171.4,18.06]
[1747566600269,62.12,171.51,171.4,18.06]
[1747566600459,18.06,171.51,171.4,18.06]
[1747566600760,270.19839391,171.55,171.41,7.9106]
[1747566600761,117.90796275,171.53,171.41,7.9106]
[1747566600963,91.90796275,171.53,171.41,7.9106]
[1747566601143,117.90796275,171.53,171.41,7.9106]
[1747566601466,18.64964886,171.52,171.41,7.9106]
[1747566602165,26.0,171.49,171.41,7.9106]
[1747566602864,18.64964886,171.48,171.36,1.6357]
[1747566603041,36.70964886,171.48,171.37,18.04]
[1747566605374,120.26846648,171.48,171.37,18.04]
[1747566605552,18.64964886,171.46,171.37,18.04]
[1747566608847,44.64964886,171.46,171.37,18.04]
[1747566610170,26.0,171.43,171.37,18.04]
[1747566611074,18.64964886,171.42,171.37,18.04]
[1747566620886,18.64964886,171.42,171.34,2.05714544]
[1747566622670,26.0,171.43,171.34,2.05714544]
[1747566623886,18.64964886,171.45,171.36,8.1042]
[1747566624095,109.55881762,171.46,171.36,8.1042]
[1747566628011,109.55881762,171.46,171.37,18.04]
[1747566634920,111.13711762,171.46,171.37,18.04]
[1747566642435,18.64964886,171.45,171.37,18.04]
[1747566645328,111.13711762,171.46,171.37,18.04]
[1747566647324,111.13711762,171.46,171.35,44.04]
[1747566652155,111.13711762,171.46,171.36,18.04]
[1747566660835,111.13711762,171.46,171.37,1.5851]
[1747566660836,83.55881762,171.46,171.37,1.5851]
[1747566662148,83.55881762,171.46,171.38,18.06]
[1747566663460,18.04,171.49,171.38,44.06]
[1747566663850,88.25940275,171.5,171.39,18.64964886]
[1747566666261,88.25940275,171.5,171.38,44.06]
[1747566667681,20.25454886,171.49,171.38,44.06]
[1747566667890,26.91484886,171.49,171.38,26.0]
[1747566668063,8.2652,171.49,171.38,26.0]
[1747566671379,26.91484886,171.49,171.38,26.0]
[1747566675685,1.6049,171.49,171.38,26.0]
[1747566680588,1.6049,171.49,171.38,44.04]
[1747566681364,88.25940275,171.5,171.38,44.04]
[1747566681991,88.25940275,171.5,171.39,18.04]
[1747566684087,88.25940275,171.5,171.4,8.0428]
[1747566686571,88.25940275,171.5,171.4,1.5217]
[1747566690308,18.64964886,171.49,171.4,1.5217]
[1747566692095,27.5281,171.48,171.39,18.04]
[1747566692272,18.64964886,171.47,171.39,18.04]
[1747566707011,18.64964886,171.47,171.36,26.0]
[1747566730262,18.64964886,171.47,171.37,6.5418]
[1747566732861,127.59881762,171.48,171.37,6.5418]
[1747566733059,127.59881762,171.48,171.38,1.5236]
[1747566740175,101.59881762,171.48,171.38,1.5236]
[1747566741375,101.59881762,171.48,171.39,18.04]
[1747566745957,83.55881762,171.48,171.39,18.04]
[1747566747579,83.55881762,171.48,171.4,26.0]
[1747566752968,83.55881762,171.48,171.4,44.04]
[1747566754489,18.64964886,171.47,171.39,18.04]
[1747566754665,6.2332,171.46,171.36,8.40524589]
[1747566754867,18.64964886,171.45,171.36,8.40524589]
[1747566757998,18.64964886,171.45,171.35,26.0]
[1747566767505,18.64964886,171.45,171.34,21.63224544]
[1747566773404,83.55881762,171.44,171.34,21.63224544]
[1747566781199,101.59881762,171.44,171.34,21.63224544]
[1747566783833,101.59881762,171.44,171.35,26.0]
[1747566785529,26.0,171.41,171.34,2.05714544]
[1747566786036,18.64964886,171.41,171.34,2.05714544]
[1747566793345,26.0,171.41,171.34,2.05714544]
[1747566799159,26.0,171.38,171.34,2.05714544]
[1747566799324,44.64964886,171.4,171.34,2.05714544]
[1747566799523,44.64964886,171.4,171.29,26.0]
[1747566799954,44.64964886,171.4,171.3,18.04]
[1747566803630,62.84964886,171.4,171.3,18.04]
[1747566804529,67.52837178,171.4,171.3,18.04]
[1747566804730,62.84964886,171.4,171.3,18.04]
[1747566812176,18.64964886,171.43,171.31,7.9965]
[1747566812581,44.64964886,171.43,171.31,7.9965]
[1747566813889,44.64964886,171.43,171.27,8.40524589]
[1747566813890,19.1259,171.39,171.27,8.40524589]
[1747566814094,18.64964886,171.38,171.28,1.513]
[1747566814284,1.6259,171.39,171.28,27.513]
[1747566814589,44.64964886,171.4,171.28,46.113]
[1747566814881,18.64964886,171.4,171.28,46.113]
[1747566815055,44.64964886,171.4,171.28,46.113]
[1747566821603,44.64964886,171.4,171.29,18.16]
[1747566823312,101.71881762,171.42,171.29,18.16]
[1747566823495,109.55881762,171.42,171.29,18.16]
[1747566823813,83.55881762,171.42,171.29,18.16]
[1747566823994,109.55881762,171.42,171.29,18.16]
[1747566831815,83.55881762,171.42,171.32,26.0]
[1747566831998,83.55881762,171.42,171.33,7.677]
[1747566832198,107.87749808,171.45,171.34,18.54]
[1747566832396,107.87749808,171.45,171.35,18.16]
[1747566832596,133.87749808,171.45,171.35,18.16]
[1747566851354,26.0,171.45,171.35,18.16]
[1747566851978,103.34471762,171.47,171.35,18.16]
[1747566852274,26.0,171.46,171.35,44.16]
[1747566856151,1.6083,171.51,171.43,26.0]
[1747566856358,1.6083,171.51,171.43,44.46]
[1747566865689,26.0,171.49,171.43,18.46]
[1747566868188,26.0,171.49,171.4,1.5576]
[1747566868396,26.0,171.49,171.38,131.7936]
[1747566868689,26.0,171.49,171.38,51.0936]
[1747566870390,26.0,171.49,171.38,44.46]
[1747566882013,26.0,171.49,171.39,1.5896]
[1747566882510,1.6083,171.51,171.39,1.5896]
[1747566882687,27.6083,171.51,171.4,6.6396]
[1747566888227,18.64964886,171.5,171.4,6.6396]
[1747566888428,26.0,171.46,171.39,1.5896]
[1747566888601,26.0,171.46,171.38,18.46]
[1747566890318,26.0,171.46,171.38,18.46]
[1747566895017,18.64964886,171.48,171.38,18.46]
[1747566895316,18.64964886,171.46,171.38,18.46]
[1747566895616,44.64964886,171.46,171.38,18.46]
[1747566898126,26.0,171.46,171.38,18.46]
[1747566904707,83.55881762,171.49,171.38,18.46]
[1747566904906,109.55881762,171.49,171.38,18.46]
[1747566906010,18.64964886,171.48,171.38,18.46]
[1747566908535,109.55881762,171.49,171.38,18.46]
[1747566909621,18.64964886,171.48,171.38,18.46]
[1747566917043,18.64964886,171.48,171.39,7.7749]
[1747566917227,109.55881762,171.49,171.39,7.7749]
[1747566930442,83.55881762,171.49,171.39,7.7749]
[1747566935437,83.55881762,171.49,171.4,18.18]
[1747566937158,83.55881762,171.49,171.41,18.18]
[1747566937340,1.6083,171.51,171.41,44.18]
[1747566937540,24.3549,171.52,171.41,44.18]
[1747566940358,6.0949,171.52,171.41,44.18]
[1747566943846,386.30083812,171.55,171.45,1.5368]
[1747566944355,386.30083812,171.55,171.46,18.18]
[1747566944950,377.11721762,171.55,171.46,18.18]
[1747566960781,18.64964886,171.54,171.46,18.18]
[1747566962494,377.11721762,171.55,171.46,18.18]
[1747566966164,395.21721762,171.55,171.46,18.18]
[1747566973892,377.11721762,171.55,171.46,18.18]
[1747566974489,18.64964886,171.54,171.46,18.18]
[1747566976789,377.11721762,171.55,171.45,2.05029055]
[1747566979081,377.11721762,171.55,171.45,3.62939055]
[1747566979369,351.11721762,171.55,171.45,3.62939055]
[1747566979685,266.0,171.55,171.45,3.62939055]
[1747566980577,266.0,171.55,171.5,18.64964886]
[1747566980780,266.0,171.55,171.53,27.5791]
[1747566987695,266.0,171.55,171.54,26.0]
[1747566988197,266.0,171.55,171.54,44.64964886]
[1747566989203,266.0,171.55,171.54,26.0]
[1747566989400,266.0,171.55,171.54,27.22597106]
[1747566991999,266.0,171.55,171.54,45.87561992]
[1747566992197,266.0,171.55,171.54,27.22597106]
[1747566994102,266.0,171.55,171.54,45.87561992]
[1747566995707,266.0,171.55,171.54,44.64964886]
[1747566996080,265.81591993,171.55,171.54,44.64964886]
[1747566996276,265.81591993,171.55,171.54,46.51453931]
[1747566996509,265.81591993,171.55,171.54,46.33151443]
[1747566999003,143.65929875,171.55,171.54,134.66531443]
[1747566999305,129.09829899,171.55,171.54,134.66531443]
[1747566999604,114.53729923,171.55,171.54,134.66531443]
[1747566999800,99.97629947,171.55,171.54,134.66531443]
[1747567000297,77.90035197,171.55,171.54,134.66531443]
[1747567000609,63.33935221,171.55,171.54,134.66531443]
[1747567001323,8.10935221,171.55,171.54,134.66531443]
[1747567007029,8.10935221,171.55,171.54,128.61221443]
[1747567007833,8.10935221,171.55,171.54,20.33151443]
[1747567008048,8.10935221,171.55,171.54,56.57151443]
[1747567025012,8.10935221,171.55,171.54,37.92186557]
[1747567025538,8.10935221,171.55,171.54,37.90186557]
[1747567026441,8.10935221,171.55,171.54,63.90186557]
[1747567026934,8.10935221,171.55,171.54,27.68186557]
[1747567027141,8.10935221,171.55,171.54,45.78186557]
[1747567028640,8.10935221,171.55,171.54,19.78186557]
[1747567036119,8.10935221,171.55,171.54,18.1]
[1747567036950,8.10935221,171.55,171.49,18.12]
[1747567042348,6.3058,171.54,171.49,18.12]
[1747567049054,8.10935221,171.55,171.49,18.12]
[1747567053249,18.64964886,171.54,171.47,1.32835675]
[1747567054650,95.89804758,171.59,171.47,1.32835675]
[1747567054852,59.67804758,171.58,171.47,1.32835675]
[1747567056567,18.64964886,171.57,171.47,1.32835675]
[1747567056957,85.67804758,171.58,171.47,1.32835675]
[1747567057573,87.20194758,171.58,171.47,1.32835675]
[1747567060889,59.67804758,171.58,171.48,52.50984886]
[1747567061075,59.67804758,171.58,171.49,18.12]
[1747567061277,59.67804758,171.58,171.5,18.1]
[1747567061474,26.0,171.6,171.5,18.1]
[1747567062098,1.5239,171.62,171.53,26.0]
[1747567077504,1.5239,171.62,171.52,18.14]
[1747567078311,44.1,171.64,171.53,7.6376]
[1747567083392,44.1,171.64,171.53,25.7176]
[1747567088116,18.1,171.64,171.53,25.7176]
[1747567088315,27.6006,171.66,171.53,25.7176]
[1747567095630,26.0,171.62,171.53,25.7176]
[1747567095838,27.6298,171.61,171.53,18.08]
[1747567096213,18.64964886,171.6,171.53,18.08]
[1747567096929,18.64964886,171.6,171.49,7.8281]
[1747567097813,18.64964886,171.6,171.48,18.14]
[1747567099314,26.0,171.57,171.48,18.14]
[1747567105741,18.64964886,171.56,171.48,18.14]
[1747567106232,18.64964886,171.56,171.47,1.32835675]
[1747567106413,18.14,171.55,171.47,1.32835675]
[1747567113544,18.64964886,171.54,171.47,1.32835675]
[1747567115150,44.64964886,171.54,171.47,1.32835675]
[1747567121750,17.90171835,171.54,171.47,1.32835675]
[1747567128260,17.90171835,171.54,171.42,26.0]
[1747567129844,36.02171835,171.54,171.42,26.0]
[1747567132266,54.14171835,171.54,171.42,26.0]
[1747567134145,54.14171835,171.54,171.44,8.0196]
[1747567135265,36.02171835,171.54,171.44,8.0196]
[1747567144762,26.0,171.5,171.41,18.12]
[1747567156287,59.67804758,171.53,171.41,18.12]
[1747567156483,59.67804758,171.53,171.42,18.64964886]
[1747567156682,85.67804758,171.53,171.42,18.64964886]
[1747567157002,59.67804758,171.53,171.42,18.64964886]
[1747567157193,85.67804758,171.53,171.42,18.64964886]
[1747567167605,85.67804758,171.53,171.41,18.12]
[1747567167790,85.67804758,171.53,171.41,36.42]
[1747567168187,26.0,171.5,171.41,18.12]
[1747567187029,59.67804758,171.53,171.42,18.64964886]
[1747567187720,85.67804758,171.53,171.42,18.64964886]
[1747567188248,85.67804758,171.53,171.43,6.1976]
[1747567188612,8.98899391,171.58,171.44,20.25014886]
[1747567188811,8.98899391,171.58,171.46,18.64964886]
[1747567189011,4.19839391,171.58,171.47,18.26]
[1747567189225,26.0,171.56,171.47,18.26]
[1747567208249,26.0,171.55,171.47,18.26]
[1747567211835,26.0,171.55,171.48,6.323]
[1747567212036,26.0,171.55,171.48,7.8692]
[1747567223064,59.67804758,171.57,171.48,7.8692]
[1747567223249,26.0,171.56,171.48,7.8692]
[1747567223773,59.67804758,171.57,171.48,7.8692]
[1747567224266,26.0,171.56,171.48,7.8692]
[1747567251389,59.67804758,171.57,171.48,6.323]
[1747567252690,59.67804758,171.57,171.46,44.12]
[1747567256771,77.79804758,171.57,171.46,44.12]
[1747567259798,26.0,171.55,171.46,18.12]
[1747567259997,26.0,171.53,171.46,18.12]
[1747567263810,27.6203,171.55,171.46,18.12]
[1747567264101,26.0,171.55,171.46,18.12]
[1747567267582,59.67804758,171.56,171.47,18.64964886]
[1747567267784,59.67804758,171.56,171.49,1.5229]
[1747567268297,59.67804758,171.56,171.5,18.64964886]
[1747567270999,26.0,171.61,171.51,6.4731]
[1747567271202,26.0,171.61,171.52,18.1]
[1747567272203,18.12,171.62,171.53,18.64964886]
[1747567272706,71.10835217,171.64,171.53,18.64964886]
[1747567275288,71.10835217,171.64,171.54,1.5916]
[1747567277215,43.48265217,171.64,171.54,46.0516]
[1747567277383,59.67804758,171.65,171.55,6.3706]
[1747567294505,26.0,171.62,171.55,6.3706]
[1747567305609,26.0,171.62,171.52,18.1]
[1747567305930,26.0,171.58,171.52,18.1]
[1747567306337,26.0,171.58,171.47,36.76]
[1747567306834,26.0,171.58,171.47,18.38]
[1747567308934,26.0,171.56,171.47,18.38]
[1747567311736,44.42,171.56,171.47,18.38]
[1747567314733,26.0,171.56,171.47,18.38]
[1747567314940,26.0,171.55,171.47,18.38]
[1747567319416,26.0,171.54,171.47,18.38]
[1747567322356,26.0,171.54,171.46,8.1837]
[1747567322850,26.0,171.54,171.46,6.5321]
[1747567323550,26.0,171.54,171.43,145.42]
[1747567324056,26.0,171.5,171.43,145.42]
[1747567324364,26.0,171.5,171.42,26.285]
[1747567324654,26.0,171.49,171.42,26.285]
[1747567325452,26.0,171.49,171.39,1.05506101]
[1747567325653,85.67804758,171.49,171.39,1.05506101]
[1747567329264,26.0,171.45,171.39,1.05506101]
[1747567330054,26.0,171.44,171.39,1.05506101]
[1747567330260,26.0,171.45,171.39,1.05506101]
[1747567335166,59.67804758,171.48,171.39,1.05506101]
[1747567335344,85.67804758,171.48,171.39,1.05506101]
[1747567340159,18.64964886,171.47,171.39,1.05506101]
[1747567346455,59.67804758,171.46,171.39,1.05506101]
[1747567354482,59.67804758,171.46,171.39,2.58916101]
[1747567366603,59.67804758,171.46,171.39,8.93116101]
[1747567370417,18.52,171.48,171.39,8.93116101]
[1747567371816,26.0,171.49,171.39,8.93116101]
[1747567373704,1.6403,171.48,171.39,1.05506101]
[1747567373910,26.0,171.47,171.39,1.05506101]
[1747567374422,26.0,171.45,171.39,1.05506101]
[1747567374802,26.0,171.44,171.39,1.05506101]
[1747567376119,18.64964886,171.43,171.39,1.05506101]
[1747567376623,59.67804758,171.42,171.32,18.48]
[1747567377807,61.20524758,171.42,171.32,18.48]
[1747567384541,59.67804758,171.42,171.32,18.48]
[1747567387223,26.0,171.44,171.33,18.64964886]
[1747567387533,26.0,171.44,171.34,6.107]
[1747567389320,18.64964886,171.43,171.32,18.48]
[1747567389638,18.64964886,171.41,171.32,18.48]
[1747567389837,37.16964886,171.41,171.32,18.48]
[1747567393645,44.64964886,171.39,171.32,18.48]
[1747567393836,44.64964886,171.39,171.29,6.0884]
[1747567399648,26.0,171.39,171.29,6.0884]
[1747567410866,59.67804758,171.4,171.29,6.0884]
[1747567411265,59.67804758,171.4,171.3,18.64964886]
[1747567411266,26.0,171.4,171.3,18.64964886]
[1747567413468,18.64964886,171.43,171.3,18.64964886]
[1747567413665,26.0,171.42,171.3,18.64964886]
[1747567415075,26.0,171.42,171.31,18.5]
[1747567420779,26.0,171.42,171.32,1.5807]
[1747567432197,26.0,171.42,171.32,19.9207]
[1747567443984,26.0,171.42,171.32,38.2807]
[1747567445992,26.0,171.41,171.32,38.2807]
[1747567448203,26.0,171.41,171.33,6.1305]
[1747567449805,26.0,171.43,171.33,6.1305]
[1747567450005,78.03804758,171.44,171.33,6.1305]
[1747567453512,59.67804758,171.44,171.33,6.1305]
[1747567466525,59.67804758,171.44,171.32,38.2807]
[1747567466526,26.0,171.42,171.32,19.9407]
[1747567466695,26.0,171.42,171.32,18.36]
[1747567468415,36.88964886,171.41,171.32,18.36]
[1747567468606,55.14964886,171.41,171.32,18.36]
[1747567476323,18.26,171.41,171.32,18.36]
[1747567476531,36.90964886,171.41,171.32,18.36]
[1747567487837,36.90964886,171.41,171.3,26.0]
[1747567490129,18.64964886,171.4,171.3,26.0]
[1747567502854,18.26,171.41,171.3,26.0]
[1747567504458,18.26,171.41,171.32,6.1949]
[1747567505049,26.0,171.41,171.32,6.1949]
[1747567513070,18.64964886,171.4,171.32,6.1949]
[1747567513292,78.32769644,171.4,171.32,6.1949]
[1747567516679,26.0,171.37,171.29,18.26]
[1747567518086,26.0,171.36,171.29,18.26]
[1747567532399,26.0,171.36,171.28,6.0335]
[1747567563688,44.64964886,171.35,171.26,1.6462]
[1747567563853,26.0,171.32,171.26,1.6462]
[1747567572199,26.0,171.32,171.25,18.22]
[1747567572507,26.0,171.3,171.25,18.22]
[1747567572706,26.0,171.3,171.23,6.3939]
[1747567574125,18.22,171.33,171.23,6.3939]
[1747567574126,26.0,171.29,171.23,6.3939]
[1747567574277,26.0,171.29,171.21,1.05617024]
[1747567576705,26.0,171.31,171.21,1.05617024]
[1747567576890,26.0,171.31,171.22,8.1965]
[1747567579607,26.0,171.31,171.22,26.4165]
[1747567599844,19.8384,171.35,171.23,44.64964886]
[1747567600039,18.2,171.35,171.24,18.22]
[1747567600538,18.2,171.35,171.25,7.9734]
[1747567613060,18.2,171.35,171.26,18.2]
[1747567613570,26.0,171.36,171.26,18.2]
[1747567624688,59.67804758,171.38,171.26,44.2]
[1747567631193,26.0,171.35,171.26,18.2]
[1747567647919,26.0,171.37,171.26,18.2]
[1747567652219,26.0,171.37,171.25,26.1734]
[1747567654632,18.64964886,171.36,171.25,7.9734]
[1747567654858,26.0,171.35,171.25,7.9734]
[1747567655335,26.0,171.31,171.24,18.2]
[1747567657514,26.0,171.31,171.21,7.8752]
[1747567658031,26.0,171.27,171.19,18.2]
[1747567676333,26.0,171.25,171.19,18.2]
[1747567677517,26.0,171.25,171.17,7.8752]
[1747567677954,26.0,171.23,171.17,7.8752]
[1747567683820,26.0,171.23,171.14,18.2]
[1747567690347,77.87804758,171.26,171.14,18.2]
[1747567690538,26.0,171.25,171.14,18.2]
[1747567690932,26.0,171.25,171.15,1.5736]
[1747567698896,59.67804758,171.26,171.15,1.5736]
[1747567698897,26.0,171.23,171.15,1.5736]
[1747567699176,26.0,171.23,171.14,18.2]
[1747567699381,18.64964886,171.22,171.13,6.4557]
[1747567699574,78.32769644,171.22,171.13,6.4557]
[1747567704142,82.98378628,171.22,171.13,6.4557]
[1747567704569,26.0,171.19,171.13,6.4557]
[1747567705063,26.0,171.19,171.11,1.5004]
[1747567720282,26.0,171.18,171.11,1.5004]
[1747567749852,18.2,171.21,171.11,1.5004]
[1747567750035,9.1836205,171.23,171.12,32.4658]
[1747567750827,9.1836205,171.23,171.13,1.6431]
[1747567751031,9.1836205,171.23,171.14,36.38]
[1747567751545,9.1836205,171.23,171.15,6.4658]
[1747567752865,26.0,171.25,171.16,1.5406]
[1747567753349,9.1836205,171.27,171.18,6.0015]
[1747567756159,26.0,171.29,171.18,6.0015]
[1747567765462,26.0,171.29,171.19,18.18]
[1747567787059,26.0,171.29,171.19,36.36]
[1747567793986,26.0,171.29,171.2,1.6434]
[1747567797089,26.0,171.29,171.21,18.16]
[1747567800579,98.05179644,171.32,171.21,18.16]
[1747567800779,72.2756675,171.33,171.22,6.1533]
[1747567800985,98.2756675,171.33,171.22,6.1533]
[1747567801383,72.2756675,171.33,171.22,6.1533]
[1747567802798,72.2756675,171.33,171.25,6.4068]
[1747567802996,54.9344205,171.36,171.26,18.16]
[1747567803180,54.9344205,171.36,171.27,18.16]
[1747567804200,45.7508,171.36,171.27,18.16]
[1747567805801,18.64964886,171.35,171.27,18.16]
[1747567812309,45.7508,171.36,171.27,18.16]
[1747567812510,44.16,171.36,171.27,18.16]
[1747567813717,18.64964886,171.35,171.27,18.16]
[1747567815689,44.16,171.36,171.27,18.16]
[1747567816488,26.0,171.36,171.28,1.5625]
[1747567821700,26.0,171.38,171.29,6.2731]
[1747567842222,26.0,171.38,171.3,18.14]
[1747567844729,18.14,171.43,171.3,18.14]
[1747567844730,1.6471,171.46,171.33,26.0]
[1747567844933,18.64964886,171.45,171.34,32.4157]
[1747567846243,77.81804758,171.48,171.35,20.29054886]
[1747567846546,26.0,171.47,171.36,18.14]
[1747567853160,26.0,171.45,171.36,18.14]
[1747567853329,26.0,171.45,171.34,6.4157]
[1747567853330,20.29674886,171.44,171.34,6.4157]
[1747567853530,26.0,171.41,171.32,1.6409]
[1747567858977,26.0,171.43,171.32,1.6409]
[1747567860703,18.64964886,171.42,171.32,1.6409]
[1747567863702,26.0,171.41,171.32,1.6409]
[1747567863907,18.64964886,171.43,171.32,1.6409]
[1747567875223,26.0,171.4,171.32,1.6409]
[1747567875520,26.0,171.4,171.31,18.14]
[1747567878793,18.64964886,171.39,171.31,18.14]
[1747567882934,26.0,171.4,171.32,6.5814]
[1747567884548,26.0,171.4,171.31,18.14]
[1747567894334,18.64964886,171.39,171.31,18.14]
[1747567895209,26.0,171.36,171.28,8.0987]
[1747567895916,26.0,171.36,171.26,36.72]
[1747567895917,18.64964886,171.35,171.26,18.34]
[1747567903956,26.0,171.32,171.26,18.34]
[1747567908558,18.64964886,171.35,171.26,18.34]
[1747567908750,18.38,171.36,171.26,18.34]
[1747567908950,26.0,171.36,171.26,18.34]
[1747567916772,18.64964886,171.35,171.26,18.34]
[1747567918252,26.0,171.32,171.26,18.34]
[1747567919579,18.64964886,171.31,171.24,7.8499]
[1747567919760,18.64964886,171.31,171.21,39.32141439]
[1747567930185,18.64964886,171.31,171.21,18.4]
[1747567932485,96.72769644,171.31,171.21,18.4]
[1747567937399,59.67804758,171.31,171.21,18.4]
[1747567944905,59.67804758,171.31,171.22,1.5592]
[1747567945506,59.67804758,171.31,171.24,26.0]
[1747567945694,62.65126983,171.43,171.26,1.5592]
[1747567945695,27.5836205,171.39,171.26,1.5592]
[1747567945891,27.5836205,171.39,171.27,18.4]
[1747567946199,27.5836205,171.39,171.27,44.4]
[1747567946500,53.5836205,171.39,171.27,44.4]
[1747567946705,27.5836205,171.39,171.27,44.4]
[1747567947909,18.64964886,171.38,171.27,44.4]
[1747567949680,26.0,171.35,171.27,18.4]
[1747567968214,26.0,171.35,171.26,1.5592]
[1747567977858,26.0,171.35,171.27,18.36]
[1747567981772,20.20774886,171.34,171.27,18.36]
[1747567981943,26.0,171.31,171.22,18.28]
[1747567983046,44.64964886,171.3,171.22,18.28]
[1747567985781,26.0,171.3,171.22,18.28]
[1747567988263,26.0,171.3,171.22,7.28]
[1747568001870,77.95804758,171.33,171.22,7.28]
[1747568002071,103.95804758,171.33,171.22,7.28]
[1747568003981,85.67804758,171.33,171.23,18.64964886]
[1747568005175,85.17804758,171.33,171.23,18.64964886]
[1747568006457,85.17804758,171.33,171.22,7.28]